bitfinex/quotes_BTCUSD_20251015
["timestamp","ask_amount","ask_price","bid_price","bid_amount"]
[1760541431586,0.18034365,110900.0,110880.0,0.27908088]
[1760541431800,0.18034365,110900.0,110870.0,0.18938118]
[1760541432007,0.18034365,110900.0,110880.0,0.18037389]
[1760541432256,0.18035891,110890.0,110870.0,0.38594801]
[1760541432477,0.18035891,110890.0,110870.0,0.27007992]
[1760541432692,0.18035891,110890.0,110860.0,0.65756882]
[1760541432693,0.18037518,110880.0,110860.0,0.18942491]
[1760541432929,0.66665001,110880.0,110850.0,0.18042216]
[1760541433777,0.66665001,110880.0,110860.0,0.18040731]
[1760541433991,0.66665001,110880.0,110850.0,0.18042216]
[1760541434219,0.66665001,110880.0,110850.0,0.22899386]
[1760541434434,0.47725608,110860.0,110840.0,0.18043239]
[1760541434660,0.48627646,110860.0,110830.0,0.18044814]
[1760541434872,0.47725608,110850.0,110840.0,0.18044027]
[1760541435082,0.7563746,110860.0,110840.0,0.19848429]
[1760541435289,0.7563746,110860.0,110830.0,0.18044814]
[1760541435290,0.65768109,110850.0,110830.0,0.18044814]
[1760541435504,0.65768109,110850.0,110820.0,0.18946665]
[1760541435728,0.47725608,110840.0,110820.0,0.27915677]
[1760541435986,0.47725608,110840.0,110830.0,0.18045655]
[1760541436215,0.47725608,110850.0,110840.0,0.18044027]
[1760541436429,0.47725608,110850.0,110830.0,0.18045655]
[1760541436644,0.08969012,110860.0,110850.0,0.18042399]
[1760541436870,0.47725608,110870.0,110850.0,0.18042399]
[1760541437110,0.73838503,110890.0,110860.0,0.19844849]
[1760541437344,0.83553745,110890.0,110860.0,0.1894281]
[1760541437573,0.25212646,110910.0,110890.0,0.18035644]
[1760541437789,0.74729045,110900.0,110880.0,0.18037518]
[1760541438010,0.01664998,110900.0,110890.0,0.18035891]
[1760541438227,0.49390606,110900.0,110890.0,0.18035891]
[1760541438497,0.01664998,110900.0,110890.0,0.18035891]
[1760541438928,0.47725608,110910.0,110880.0,0.18939393]
[1760541439139,0.6665993,110910.0,110890.0,0.18035549]
[1760541439358,0.18934322,110910.0,110890.0,0.18035549]
[1760541439571,0.18031115,110920.0,110890.0,0.18937343]
[1760541439792,0.74725735,110920.0,110890.0,0.18937343]
[1760541440010,0.47725608,110900.0,110880.0,0.27006147]
[1760541440213,0.47725608,110900.0,110880.0,0.27006268]
[1760541440417,0.657583,110910.0,110890.0,0.18035859]
[1760541440639,0.65758372,110910.0,110890.0,0.18035859]
[1760541440857,0.74727863,110910.0,110890.0,0.18035499]
[1760541441074,0.5669462,110910.0,110890.0,0.1803574]
[1760541441285,0.73841075,110930.0,110890.0,0.18937534]
[1760541441501,0.26110113,110950.0,110890.0,0.87220154]
[1760541441713,0.74722413,110940.0,110890.0,0.75632154]
[1760541441939,0.74722702,110940.0,110890.0,0.39493742]
[1760541442147,0.74722702,110940.0,110890.0,0.7563135]
[1760541442148,0.11588,110930.0,110890.0,0.7563135]
[1760541442385,0.5669462,110940.0,110910.0,0.18031089]
[1760541442605,0.47725608,110930.0,110900.0,0.30522352]
[1760541442825,0.47725608,110910.0,110880.0,0.18037391]
[1760541443038,0.77882685,110920.0,110880.0,0.18037391]
[1760541443039,0.08969012,110920.0,110890.0,0.18035815]
[1760541443250,0.74726152,110920.0,110890.0,0.18035815]
[1760541443754,0.47725608,110910.0,110890.0,0.18035556]
[1760541443971,0.5669462,110910.0,110890.0,0.18035808]
[1760541444191,0.08969012,110910.0,110890.0,0.18035808]
[1760541444406,0.18034265,110900.0,110880.0,0.25734278]
[1760541444662,0.08969012,110910.0,110890.0,0.1803589]
[1760541444885,0.08969012,110910.0,110900.0,0.18034265]
[1760541445110,10.18029594,110930.0,110900.0,0.18935978]
[1760541445319,0.5669462,110920.0,110900.0,0.1803378]
[1760541445532,0.5669462,110920.0,110890.0,0.18035696]
[1760541445533,0.47725608,110910.0,110890.0,0.18035696]
[1760541445746,0.5669462,110910.0,110890.0,0.18035696]
[1760541445953,0.34,110910.0,110900.0,0.18034265]
[1760541447065,0.81725608,110910.0,110900.0,0.18034265]
[1760541447283,0.34,110910.0,110900.0,0.18034265]
[1760541447748,0.34,110910.0,110890.0,0.29631022]
[1760541447978,0.34,110910.0,110900.0,0.18034265]
[1760541448203,10.34,110930.0,110920.0,0.18031013]
[1760541448456,10.34,110930.0,110910.0,0.18031198]
[1760541448680,0.34,110920.0,110910.0,0.18031198]
[1760541448906,0.34,110920.0,110900.0,0.18034126]
[1760541449149,1.16644214,110920.0,110900.0,0.18033827]
[1760541449610,0.34,110920.0,110910.0,0.18032639]
[1760541449839,10.0,110930.0,110920.0,0.18031013]
[1760541450278,10.73675202,110930.0,110900.0,0.1893554]
[1760541450486,10.82644214,110930.0,110910.0,0.18032632]
[1760541450698,10.08969012,110930.0,110920.0,0.18031013]
[1760541450909,10.0,110930.0,110900.0,0.30525055]
[1760541451126,10.0,110930.0,110910.0,0.18032461]
[1760541451398,0.73675202,110920.0,110910.0,0.18032244]
[1760541451608,10.0,110930.0,110920.0,0.18031013]
[1760541451828,10.73675202,110930.0,110920.0,0.18031013]
[1760541453315,10.73675202,110930.0,110920.0,0.001]
[1760541453526,10.73675202,110930.0,110920.0,0.18131013]
[1760541453742,10.73675202,110930.0,110920.0,0.001]
[1760541453960,10.73675202,110930.0,110920.0,0.18131013]
[1760541454171,10.73675202,110930.0,110920.0,0.18031013]
[1760541454382,10.73675202,110930.0,110920.0,0.18131013]
[1760541455027,10.0,110930.0,110920.0,0.18131013]
[1760541455238,10.85259202,110930.0,110920.0,0.18131013]
[1760541455441,10.73675202,110930.0,110920.0,0.18131013]
[1760541455649,10.73675202,110930.0,110920.0,0.18031013]
[1760541455863,10.0,110930.0,110920.0,0.22795688]
[1760541456098,10.0,110930.0,110920.0,0.27100025]
[1760541456316,10.0,110930.0,110920.0,0.38684025]
[1760541456752,10.0,110930.0,110920.0,0.27100025]
[1760541456969,10.0,110930.0,110920.0,0.42302253]
[1760541457197,10.0,110930.0,110920.0,0.51170461]
[1760541457415,10.0,110930.0,110920.0,0.51270461]
[1760541457623,10.0,110930.0,110920.0,0.39686461]
[1760541458139,10.0,110930.0,110920.0,0.91266461]
[1760541458564,9.55512233,110930.0,110920.0,0.79686461]
[1760541458776,9.55512233,110930.0,110920.0,0.79586461]
[1760541458987,9.55512233,110930.0,110920.0,0.79786461]
[1760541459216,8.65735937,110930.0,110920.0,6.11471544]
[1760541459417,8.62159968,110930.0,110920.0,1.04618253]
[1760541459837,8.62159968,110930.0,110920.0,1.04818253]
[1760541460042,8.62159968,110930.0,110920.0,1.16398253]
[1760541460250,8.62159968,110930.0,110920.0,0.70818253]
[1760541460665,8.62159968,110930.0,110920.0,0.82398253]
[1760541460883,8.19936255,110930.0,110920.0,0.70818253]
[1760541461093,8.19936255,110930.0,110920.0,1.16398253]
[1760541461564,8.19936255,110930.0,110920.0,1.11564299]
[1760541462039,7.38066684,110930.0,110920.0,6.23440299]
[1760541462265,7.36630878,110930.0,110920.0,6.68659826]
[1760541462486,7.17413056,110930.0,110920.0,6.68659826]
[1760541462692,7.17413056,110930.0,110920.0,6.57083826]
[1760541462693,7.06629592,110930.0,110920.0,6.57083826]
[1760541462928,6.71065842,110930.0,110920.0,6.68659826]
[1760541463153,6.65707428,110930.0,110920.0,6.68459826]
[1760541463361,6.65707428,110930.0,110920.0,6.11864299]
[1760541464081,6.65707428,110930.0,110920.0,6.23436299]
[1760541464789,6.65707428,110930.0,110920.0,6.11864299]
[1760541465269,6.65707428,110930.0,110920.0,6.23432299]
[1760541465529,6.65707428,110930.0,110920.0,1.23432299]
[1760541465740,6.65707428,110930.0,110920.0,1.11864299]
[1760541465943,6.65707428,110930.0,110920.0,6.23432299]
[1760541466156,6.65707428,110930.0,110920.0,6.23232299]
[1760541466364,6.20787356,110930.0,110920.0,6.11664299]
[1760541466573,5.9072121,110930.0,110920.0,6.11864299]
[1760541467224,5.9072121,110930.0,110920.0,1.11864299]
[1760541468313,5.9072121,110930.0,110920.0,1.23428299]
[1760541468943,5.9072121,110930.0,110920.0,1.11664299]
[1760541469162,5.9072121,110930.0,110920.0,1.08046071]
[1760541469383,5.9072121,110930.0,110920.0,1.11664299]
[1760541469590,5.9072121,110930.0,110920.0,1.11864299]
[1760541470050,5.9072121,110930.0,110920.0,6.23424299]
[1760541470348,5.9072121,110930.0,110920.0,6.11864299]
[1760541470599,5.9072121,110930.0,110920.0,6.23424299]
[1760541470825,5.9072121,110930.0,110920.0,6.11864299]
[1760541471047,5.9072121,110930.0,110920.0,6.23424299]
[1760541471491,5.9072121,110930.0,110920.0,1.23420299]
[1760541471955,5.9072121,110930.0,110920.0,1.11864299]
[1760541472416,5.9072121,110930.0,110920.0,6.23416299]
[1760541472836,5.9072121,110930.0,110920.0,6.11864299]
[1760541473755,5.2320255,110930.0,110920.0,6.11864299]
[1760541473964,5.2320255,110930.0,110920.0,6.23416299]
[1760541474394,4.3503429,110930.0,110920.0,6.11564299]
[1760541474615,4.3503429,110930.0,110920.0,6.23160299]
[1760541474616,3.95774858,110930.0,110920.0,6.23160299]
[1760541474827,3.00601439,110930.0,110920.0,6.25845961]
[1760541475038,2.93668827,110930.0,110920.0,6.68554364]
[1760541475254,2.62846736,110930.0,110920.0,6.68554364]
[1760541475487,2.51260481,110930.0,110920.0,6.80106364]
[1760541475690,2.32485736,110930.0,110920.0,6.79906364]
[1760541475899,2.29779294,110930.0,110920.0,6.65968702]
[1760541476105,2.09017096,110930.0,110920.0,6.68654364]
[1760541476316,1.7079766,110930.0,110920.0,6.80202364]
[1760541476520,1.4932118,110930.0,110920.0,6.79902364]
[1760541476733,1.29540807,110930.0,110920.0,6.68654364]
[1760541476939,1.29540807,110930.0,110920.0,6.78396364]
[1760541476940,1.22629005,110930.0,110920.0,6.78396364]
[1760541477180,1.00941596,110930.0,110920.0,6.66848364]
[1760541477413,0.67245211,110930.0,110920.0,6.64162702]
[1760541477619,0.51101701,110930.0,110920.0,6.64162702]
[1760541477835,0.26403629,110930.0,110920.0,6.64162702]
[1760541478055,0.0954318,110930.0,110920.0,6.64162702]
[1760541478254,0.0717521,110970.0,110960.0,5.95642741]
[1760541478478,0.0717521,110970.0,110960.0,6.45381842]
[1760541478684,0.0717521,110970.0,110960.0,6.56929842]
[1760541478896,0.0717521,110990.0,110980.0,0.21639493]
[1760541479105,0.0721521,111010.0,110990.0,0.18018266]
[1760541479337,0.0721521,111010.0,111000.0,0.08969012]
[1760541479549,0.0721521,111010.0,111000.0,0.60513012]
[1760541479752,0.0004,111010.0,111000.0,0.6698703]
[1760541479960,0.0004,111010.0,111000.0,0.60513012]
[1760541480173,0.0004,111010.0,111000.0,0.48969012]
[1760541480379,0.73670089,111010.0,111000.0,0.4]
[1760541480597,0.73670089,111010.0,110980.0,0.001]
[1760541480848,0.73630089,111000.0,110990.0,0.08969012]
[1760541481035,0.73670089,111010.0,110990.0,0.08969012]
[1760541481456,0.0004,111010.0,110990.0,0.38528627]
[1760541481668,0.0004,111010.0,111000.0,0.001]
[1760541481874,0.73670089,111010.0,111000.0,0.001]
[1760541482306,0.73670089,111010.0,110990.0,0.20509012]
[1760541482522,0.73630089,111000.0,110990.0,0.20509012]
[1760541482743,0.91648793,111000.0,110970.0,0.4]
[1760541482955,0.1158,111010.0,110970.0,0.67892993]
[1760541483203,0.73630089,111000.0,110980.0,0.08969012]
[1760541483456,0.73630089,111000.0,110980.0,0.27891302]
[1760541483676,0.73670089,111010.0,110990.0,0.18019641]
[1760541484091,0.73670089,111010.0,110990.0,0.1154]
[1760541484306,0.73630089,111000.0,110980.0,0.08969012]
[1760541484524,0.73630089,110990.0,110980.0,0.08969012]
[1760541484757,0.73630089,110990.0,110970.0,0.58022778]
[1760541484962,0.73630089,110980.0,110970.0,0.66991901]
[1760541485169,0.73630089,110980.0,110970.0,0.26991901]
[1760541485380,0.73630089,110980.0,110970.0,0.08969012]
[1760541485595,0.73630089,110980.0,110960.0,0.18024377]
[1760541485834,0.73630089,110970.0,110960.0,0.27894614]
[1760541486058,0.73630089,110980.0,110960.0,0.27894614]
[1760541486481,0.73630089,110980.0,110970.0,0.001]
[1760541487786,0.73630089,110980.0,110970.0,0.11536]
[1760541488034,0.73630089,110980.0,110960.0,0.67093515]
[1760541488504,0.73630089,110980.0,110960.0,0.66993515]
[1760541488752,0.73630089,111000.0,110970.0,0.27893045]
[1760541488973,0.73630089,110980.0,110970.0,0.11632]
[1760541489191,0.73630089,110980.0,110970.0,0.001]
[1760541489441,0.73630089,110980.0,110960.0,0.4]
[1760541489702,0.73630089,110970.0,110960.0,0.49069012]
[1760541489967,0.85166089,110980.0,110960.0,0.49069012]
[1760541490185,0.73630089,110980.0,110960.0,0.49069012]
[1760541490396,0.85162089,110980.0,110960.0,0.49069012]
[1760541490604,0.73630089,110970.0,110960.0,0.23859012]
[1760541490814,0.85162089,110970.0,110960.0,0.23859012]
[1760541491055,0.85162089,110970.0,110960.0,0.23759012]
[1760541491262,0.73630089,110980.0,110970.0,0.001]
[1760541491676,0.85162089,110980.0,110970.0,0.001]
[1760541491886,0.85162089,110980.0,110960.0,0.23759012]
[1760541492092,0.73630089,110980.0,110960.0,0.23859012]
[1760541492302,0.73630089,110970.0,110960.0,0.23859012]
[1760541492525,0.73630089,110980.0,110960.0,0.23759012]
[1760541492727,0.09586829,111010.0,110970.0,0.27892456]
[1760541492936,0.54512209,111000.0,110970.0,0.23759012]
[1760541493141,0.73630089,110990.0,110970.0,0.23759012]
[1760541493356,0.85985919,110990.0,110970.0,0.23759012]
[1760541493573,0.73630089,110980.0,110970.0,0.08969012]
[1760541494011,0.73630089,110980.0,110960.0,0.18024382]
[1760541494220,0.73630089,110980.0,110960.0,0.38521394]
[1760541494432,0.73630089,110980.0,110960.0,0.26993394]
[1760541494638,0.73630089,110980.0,110960.0,0.78521394]
[1760541494864,0.85158089,110990.0,110960.0,0.67894619]
[1760541495099,0.74458256,110990.0,110960.0,0.67894619]
[1760541495317,0.85986256,110990.0,110960.0,0.67994619]
[1760541495553,0.73630089,110980.0,110960.0,0.49069012]
[1760541495766,0.73630089,110980.0,110960.0,0.78517474]
[1760541495978,0.73630089,110980.0,110960.0,0.66993474]
[1760541496442,0.73630089,110980.0,110960.0,0.78517474]
[1760541496651,0.73630089,110990.0,110960.0,0.79418699]
[1760541496858,0.85154089,110990.0,110960.0,0.67894699]
[1760541497062,0.73630089,110990.0,110960.0,0.79418699]
[1760541497477,0.73630089,110990.0,110960.0,0.79518699]
[1760541497898,0.85154089,110990.0,110960.0,0.27994699]
[1760541498103,0.73630089,111000.0,110970.0,0.27892046]
[1760541498303,0.74458536,111000.0,110970.0,0.67892046]
[1760541498719,0.85978536,111000.0,110970.0,0.67892046]
[1760541499131,0.73630089,110990.0,110970.0,0.79412046]
[1760541499337,0.73630089,110990.0,110970.0,0.67892046]
[1760541499544,0.73630089,110990.0,110970.0,0.79412046]
[1760541499962,0.73630089,110990.0,110970.0,0.82682046]
[1760541500408,0.73630089,110990.0,110970.0,0.94202046]
[1760541500626,0.73630089,110990.0,110970.0,0.82682046]
[1760541501047,0.73630089,110990.0,110970.0,0.82782046]
[1760541501279,0.73630089,110980.0,110970.0,0.5489]
[1760541501496,0.73630089,110980.0,110970.0,0.001]
[1760541501702,0.73630089,110990.0,110970.0,0.001]
[1760541501908,0.73630089,110990.0,110960.0,1.23715728]
[1760541502109,0.73630089,110980.0,110960.0,1.28509373]
[1760541502320,0.73630089,110980.0,110960.0,0.76993373]
[1760541502584,0.73630089,110980.0,110960.0,0.58969012]
[1760541502863,0.85150089,110980.0,110960.0,0.58969012]
[1760541503098,0.73630089,110990.0,110970.0,0.18022875]
[1760541503326,0.85150089,111000.0,110970.0,0.27893031]
[1760541503549,0.73630089,111000.0,110970.0,0.39413031]
[1760541503957,0.1152,110990.0,110970.0,0.39413031]
[1760541504182,0.73630089,110990.0,110970.0,0.20489012]
[1760541504591,0.73630089,110990.0,110970.0,0.26991822]
[1760541504795,0.73630089,110990.0,110970.0,0.2699189]
[1760541505002,0.73630089,111000.0,110970.0,0.27893034]
[1760541505415,0.85146089,110990.0,110970.0,0.39409034]
[1760541505770,0.85146089,110990.0,110970.0,0.27993034]
[1760541505972,0.0721521,111010.0,110980.0,0.18021265]
[1760541506172,0.80845299,111010.0,110980.0,0.2789134]
[1760541506402,0.73630089,110990.0,110970.0,0.401]
[1760541506602,0.27926327,111010.0,110970.0,0.60585012]
[1760541506767,0.73630089,110990.0,110970.0,0.67091617]
[1760541506962,0.73630089,110990.0,110970.0,0.48969012]
[1760541507171,0.18018387,111000.0,110960.0,0.68024491]
[1760541507172,0.73630089,110980.0,110960.0,0.68024491]
[1760541507385,0.73630089,110980.0,110960.0,0.70485012]
[1760541507583,0.73630089,110970.0,110960.0,0.5]
[1760541508241,0.73630089,110980.0,110960.0,0.5]
[1760541508654,0.85142089,110980.0,110960.0,0.5]
[1760541508857,0.73630089,110980.0,110960.0,0.5]
[1760541509060,0.73630089,110970.0,110960.0,0.501]
[1760541509525,0.47562565,110970.0,110960.0,0.501]
[1760541509728,0.0717521,111000.0,110970.0,0.18022594]
[1760541510055,0.47562565,110990.0,110980.0,0.26990218]
[1760541510274,0.0004,111010.0,110990.0,0.18019641]
[1760541510490,0.0004,111010.0,110990.0,0.20485012]
[1760541510695,0.47562565,111000.0,110990.0,0.08969012]
[1760541510899,0.47562565,111000.0,110990.0,0.20485012]
[1760541511108,0.4861529,111000.0,110960.0,0.19225738]
[1760541511309,0.47562565,110980.0,110970.0,0.08969012]
[1760541511672,0.47562565,110980.0,110960.0,0.4]
[1760541511878,0.47562565,110970.0,110930.0,0.593906]
[1760541512058,0.47562565,110960.0,110940.0,0.39414156]
[1760541512256,0.47562565,110970.0,110950.0,0.18927443]
[1760541512467,0.47562565,110980.0,110950.0,0.67896455]
[1760541513010,0.59078565,110980.0,110950.0,0.79412402]
[1760541513320,0.59074565,110980.0,110950.0,0.67896402]
[1760541513493,0.59074565,110980.0,110950.0,0.79408402]
[1760541513936,0.11512,110980.0,110950.0,0.67896402]
[1760541514109,0.59074565,110980.0,110950.0,0.79408402]
[1760541514354,0.59074565,110980.0,110950.0,0.67896402]
[1760541515087,0.47562565,110980.0,110950.0,0.67896402]
[1760541515287,0.58674565,110980.0,110950.0,0.67896402]
[1760541515515,0.11512,110980.0,110950.0,0.27896365]
[1760541515871,0.47562565,110960.0,110940.0,0.18027709]
[1760541516161,0.59098565,110960.0,110920.0,0.19227387]
[1760541516402,0.47562565,110970.0,110940.0,0.26996513]
[1760541516602,0.47562565,110960.0,110940.0,0.214064]
[1760541516756,0.59098565,110960.0,110940.0,0.08969012]
[1760541516916,0.59098565,110960.0,110940.0,0.27096716]
[1760541517123,0.47562565,110950.0,110940.0,0.001]
[1760541517743,0.77124702,110950.0,110940.0,0.001]
[1760541517977,0.59098565,110950.0,110920.0,0.4]
[1760541518184,0.47562565,110950.0,110940.0,0.001]
[1760541518392,0.18023055,110970.0,110940.0,0.001]
[1760541518592,0.18023055,110970.0,110940.0,0.27997518]
[1760541518593,0.47562565,110970.0,110940.0,0.27997518]
[1760541518792,0.59098565,110970.0,110940.0,0.27997518]
[1760541519022,0.47562565,110950.0,110940.0,0.001]
[1760541519687,0.59106565,110950.0,110920.0,0.58932497]
[1760541519922,0.59106565,110950.0,110940.0,0.001]
[1760541519923,0.47562565,110950.0,110940.0,0.001]
[1760541520460,0.59106565,110950.0,110940.0,0.001]
[1760541520651,0.59102565,110950.0,110920.0,0.67901574]
[1760541521074,0.59102565,110950.0,110920.0,0.68001574]
[1760541521558,0.47562565,110940.0,110920.0,0.49069012]
[1760541521787,0.47562565,110940.0,110920.0,0.67099599]
[1760541521988,0.1154,110950.0,110920.0,0.79541142]
[1760541522208,0.47562565,110940.0,110920.0,0.09069012]
[1760541522386,0.47562565,110940.0,110920.0,0.27099973]
[1760541522614,0.47562565,110940.0,110920.0,0.20609012]
[1760541522917,0.47562565,110940.0,110920.0,0.78539683]
[1760541523140,0.59102565,110950.0,110920.0,0.79441233]
[1760541523351,0.47562565,110940.0,110920.0,0.79437233]
[1760541523553,0.47562565,110950.0,110920.0,0.67901233]
[1760541523697,0.59098565,110950.0,110920.0,0.67901233]
[1760541523911,0.47562565,110940.0,110930.0,0.11536]
[1760541524116,0.65588716,110950.0,110920.0,0.49069012]
[1760541524331,0.47562565,110940.0,110920.0,0.60505012]
[1760541524538,0.47562565,110940.0,110920.0,0.98969012]
[1760541524784,0.47562565,110940.0,110920.0,1.10505012]
[1760541524994,0.47562565,110940.0,110920.0,0.98969012]
[1760541525135,0.47562565,110930.0,110920.0,0.5]
[1760541526243,0.47562565,110930.0,110920.0,0.501]
[1760541526638,0.47562565,110930.0,110920.0,0.5]
[1760541527087,0.59094565,110930.0,110920.0,0.501]
[1760541527534,0.44040341,110950.0,110920.0,0.501]
[1760541527535,0.36865131,110950.0,110920.0,0.501]
[1760541527741,0.59094565,110940.0,110920.0,0.501]
[1760541527937,0.47562565,110930.0,110920.0,0.501]
[1760541528189,0.59098565,110930.0,110920.0,0.501]
[1760541528393,0.47562565,110930.0,110920.0,0.501]
[1760541528594,0.59098565,110930.0,110920.0,0.501]
[1760541528800,0.27896665,110950.0,110920.0,0.501]
[1760541528961,0.27896665,110950.0,110920.0,0.5]
[1760541529162,0.47562565,110930.0,110920.0,0.5]
[1760541529370,0.08969012,110950.0,110920.0,0.68931961]
[1760541529586,0.19523525,110960.0,110920.0,0.77900973]
[1760541529758,0.5803037,110960.0,110930.0,0.18028906]
[1760541529956,0.59098565,110950.0,110930.0,0.18028906]
[1760541530204,0.59098565,110950.0,110920.0,0.89436973]
[1760541530681,0.47562565,110940.0,110920.0,0.88536]
[1760541530893,0.47562565,110940.0,110920.0,0.77]
[1760541531091,0.59094565,110940.0,110920.0,0.77]
[1760541531294,0.49061358,110960.0,110920.0,0.7790155]
[1760541531510,0.49061358,110960.0,110930.0,0.2699836]
[1760541531511,0.11532,110950.0,110930.0,0.2699836]
[1760541531697,0.11532,110960.0,110930.0,0.39431829]
[1760541531907,0.47562565,110960.0,110940.0,0.18027659]
[1760541532148,0.47562565,110960.0,110930.0,0.39431829]
[1760541532273,0.47562565,110960.0,110930.0,0.78530395]
[1760541532479,0.47562565,110960.0,110930.0,0.60501012]
[1760541532734,0.59094565,110960.0,110930.0,0.78530298]
[1760541532967,0.59094565,110960.0,110930.0,0.79431767]
[1760541533141,0.47562565,110960.0,110930.0,0.79431767]
[1760541533361,0.47562565,110960.0,110940.0,0.18027637]
[1760541533562,0.47562565,110960.0,110940.0,0.26996649]
[1760541533737,0.01511841,110980.0,110950.0,0.08969012]
[1760541533950,0.47562565,110980.0,110950.0,0.27896207]
[1760541534153,0.54737775,110990.0,110960.0,0.18925322]
[1760541534590,0.54737775,110990.0,110970.0,0.18022866]
[1760541534944,0.11536,110990.0,110960.0,0.27894735]
[1760541535069,0.66481579,111000.0,110960.0,0.39430675]
[1760541535271,0.66481579,111000.0,110960.0,0.27894675]
[1760541535272,0.11536,110990.0,110960.0,0.27894675]
[1760541535507,0.11536,110990.0,110960.0,0.39426675]
[1760541535743,0.01483567,111000.0,110970.0,0.00901144]
[1760541535949,0.72795428,111010.0,110970.0,0.39424307]
[1760541536086,0.18018089,111000.0,110970.0,0.48969012]
[1760541536284,0.11532,111000.0,110970.0,0.79424988]
[1760541536791,0.29550061,111000.0,110970.0,0.48969012]
[1760541536991,0.11532,111000.0,110970.0,0.66991878]
[1760541537190,0.84572821,111010.0,110970.0,0.78519878]
[1760541537393,0.04432049,111010.0,110980.0,0.18021094]
[1760541537604,0.0004,111010.0,110990.0,0.1801932]
[1760541537860,0.0004,111010.0,110990.0,0.08969012]
[1760541538058,0.0004,111010.0,110990.0,0.26988605]
[1760541538507,0.0004,111010.0,111000.0,0.2698703]
[1760541538714,0.0004,111010.0,111000.0,0.20497012]
[1760541539149,0.0004,111010.0,111000.0,0.08969012]
[1760541539595,0.0004,111010.0,111000.0,0.48969012]
[1760541540001,0.0004,111010.0,111000.0,0.60497012]
[1760541540207,0.0004,111010.0,111000.0,0.49069012]
[1760541540444,0.18056394,111010.0,111000.0,0.401]
[1760541540642,0.65618959,111010.0,111000.0,0.001]
[1760541540872,0.82034029,111010.0,111000.0,0.001]
[1760541541086,1.34043168,111010.0,111000.0,0.001]
[1760541541226,1.36429125,111010.0,111000.0,0.001]
[1760541541435,1.34043168,111010.0,111000.0,0.001]
[1760541541631,0.1892494,110970.0,110940.0,0.4727121]
[1760541542015,0.78015505,110970.0,110960.0,0.0717521]
[1760541542219,0.66487505,110970.0,110940.0,0.4]
[1760541542394,0.65587322,110960.0,110940.0,0.4]
[1760541542614,0.78012547,110960.0,110920.0,0.58651241]
[1760541542818,0.47562565,110950.0,110920.0,0.60445043]
[1760541543034,0.65588826,110950.0,110920.0,0.60445043]
[1760541543230,0.18027983,110940.0,110920.0,0.58969012]
[1760541543447,0.65590372,110940.0,110920.0,0.58969012]
[1760541543657,0.65590423,110940.0,110920.0,0.5]
[1760541543865,0.78014132,110950.0,110920.0,0.5]
[1760541544299,0.78014132,110950.0,110920.0,0.9]
[1760541544300,0.47562565,110940.0,110920.0,0.9]
[1760541544509,0.8698234,110950.0,110920.0,0.9]
[1760541545354,0.68054773,110950.0,110920.0,1.08030865]
[1760541545571,0.1152,110940.0,110920.0,1.08030865]
[1760541546254,0.1152,110940.0,110920.0,1.19550865]
[1760541546469,0.59082565,110950.0,110920.0,1.08030865]
[1760541546716,0.59082565,110950.0,110920.0,0.901]
[1760541546950,0.26101192,110960.0,110920.0,1.08130945]
[1760541547189,0.8875222,110960.0,110920.0,1.08130929]
[1760541547399,0.59082565,110950.0,110920.0,1.20552479]
[1760541547627,0.49010011,110970.0,110930.0,0.27899275]
[1760541547855,0.8317714,110970.0,110930.0,0.27899275]
[1760541548097,0.59082565,110960.0,110930.0,0.27899275]
[1760541548343,0.1152,110960.0,110930.0,0.67899275]
[1760541548573,0.59082565,110960.0,110930.0,0.67899845]
[1760541548801,0.56531577,110970.0,110940.0,0.18027737]
[1760541549029,0.47562565,110980.0,110950.0,0.18927285]
[1760541549247,0.72757436,110990.0,110950.0,0.39420297]
[1760541549456,0.81726448,110990.0,110950.0,0.39420297]
[1760541549692,0.65583865,110980.0,110950.0,0.08969012]
[1760541549876,0.47562565,110970.0,110950.0,0.08969012]
[1760541550087,0.59086565,110970.0,110950.0,0.08969012]
[1760541550499,0.59086565,110970.0,110950.0,0.20489012]
[1760541550741,0.59086565,110970.0,110950.0,0.08969012]
[1760541550984,0.47562565,110960.0,110930.0,0.401]
[1760541551201,0.1802544,110960.0,110930.0,0.49069012]
[1760541551417,0.7800923,110960.0,110930.0,0.49069012]
[1760541551650,0.7800923,110960.0,110930.0,0.60489012]
[1760541551901,0.7800923,110960.0,110930.0,0.48969012]
[1760541552126,0.47562565,110950.0,110930.0,0.48969012]
[1760541552352,0.1152,110960.0,110930.0,0.66997492]
[1760541552560,0.1152,110960.0,110930.0,0.67898961]
[1760541552756,0.47562565,110970.0,110940.0,0.27898157]
[1760541552960,0.65584108,110980.0,110940.0,0.27898157]
[1760541553133,0.1152,110970.0,110940.0,0.27898157]
[1760541553346,0.1152,110970.0,110940.0,0.20489012]
[1760541553587,0.29543038,110970.0,110940.0,0.08969012]
[1760541554000,0.78006747,110970.0,110940.0,0.08969012]
[1760541554221,0.47562565,110950.0,110920.0,0.5]
[1760541554438,0.47562565,110950.0,110930.0,0.08969012]
[1760541554647,0.1152,110960.0,110930.0,0.66998312]
[1760541554856,0.66485074,110980.0,110940.0,0.1802773]
[1760541555069,0.18023051,110970.0,110940.0,0.08969012]
[1760541555281,0.36859729,110980.0,110940.0,0.27897094]
[1760541555497,0.54737775,110990.0,110950.0,0.39416409]
[1760541555715,0.54737775,110990.0,110950.0,0.08969012]
[1760541555716,0.18021408,110980.0,110950.0,0.08969012]
[1760541555934,0.66486611,110970.0,110930.0,0.401]
[1760541556141,0.75157944,110970.0,110940.0,0.08969012]
[1760541556355,0.86677944,110970.0,110940.0,0.08969012]
[1760541556564,0.18024567,110960.0,110940.0,0.08969012]
[1760541556781,0.78006611,110970.0,110940.0,0.08969012]
[1760541556987,0.78006611,110970.0,110940.0,0.26996712]
[1760541557201,0.47562565,110980.0,110950.0,0.18026106]
[1760541557411,0.18885912,110980.0,110950.0,0.39416424]
[1760541557629,0.1152,110980.0,110950.0,0.39412424]
[1760541557842,0.11516,110980.0,110950.0,0.39412424]
[1760541558063,0.73659117,110990.0,110950.0,0.39412345]
[1760541558281,0.6799282,111000.0,110960.0,0.18024486]
[1760541558514,0.6799282,111000.0,110960.0,0.38509488]
[1760541558515,0.11516,110990.0,110960.0,0.38509488]
[1760541558721,0.47562565,110990.0,110960.0,0.08969012]
[1760541558932,0.47562565,110990.0,110960.0,0.26993369]
[1760541559144,0.7606018,111000.0,110960.0,0.38509369]
[1760541559382,0.65582318,110990.0,110960.0,0.08969012]
[1760541559597,0.65582318,110990.0,110960.0,0.48969012]
[1760541559840,0.77098318,110990.0,110960.0,0.60485012]
[1760541560048,0.11516,110990.0,110960.0,0.78509464]
[1760541560265,0.47562565,110990.0,110960.0,0.78509464]
[1760541560477,0.25240673,111010.0,110970.0,0.26991855]
[1760541560478,0.73704057,111010.0,110970.0,0.26991855]
[1760541560689,0.11512,111000.0,110970.0,0.08969012]